[Event "*** Titled Tuesday 3|2 Blitz"]
[Site "Chess.com"]
[Date "2017.03.07"]
[Round "2"]
[White "Yaacovn"]
[Black "jncool68"]
[Result "1/2-1/2"]
[WhiteElo "2587"]
[BlackElo "2522"]
[TimeControl "180+2"]
[EndTime "13:27:30 PST"]
[Termination "Game drawn by agreement"]

1. d4 {[%clk 0:02:59.3]} 1... Nf6 {[%clk 0:02:59.3]} 2. Nf3 {[%clk 0:02:46.6]}
2... e6 {[%clk 0:03:00.1]} 3. c4 {[%clk 0:02:36.5]} 3... Bb4+ {[%clk 0:03:00.1]}
4. Bd2 {[%clk 0:02:33.4]} 4... Qe7 {[%clk 0:03:01]} 5. g3 {[%clk 0:02:34.3]}
5... Nc6 {[%clk 0:03:01.6]} 6. a3 {[%clk 0:02:35.3]} 6... Bxd2+ {[%clk
0:03:02.1]} 7. Qxd2 {[%clk 0:02:33.4]} 7... d6 {[%clk 0:03:00.2]} 8. Bg2 {[%clk
0:02:34.2]} 8... O-O {[%clk 0:03:01.3]} 9. O-O {[%clk 0:02:34.6]} 9... e5 {[%clk
0:03:02.6]} 10. Nc3 {[%clk 0:02:35.3]} 10... Bg4 {[%clk 0:02:59.1]} 11. dxe5
{[%clk 0:02:35.4]} 11... dxe5 {[%clk 0:02:57.7]} 12. Nd5 {[%clk 0:02:35.5]}
12... Nxd5 {[%clk 0:02:58.7]} 13. cxd5 {[%clk 0:02:36.1]} 13... Bxf3 {[%clk
0:02:59.9]} 14. exf3 {[%clk 0:02:33.4]} 14... Nd4 {[%clk 0:03:00.2]} 15. Rae1
{[%clk 0:02:33.5]} 15... Qf6 {[%clk 0:02:57.9]} 16. f4 {[%clk 0:02:17.5]} 16...
exf4 {[%clk 0:02:57.5]} 17. Re4 {[%clk 0:02:17.9]} 17... Nb5 {[%clk 0:02:19.1]}
18. Rxf4 {[%clk 0:02:10]} 18... Qh6 {[%clk 0:02:20]} 19. Qc2 {[%clk 0:01:57.9]}
19... Rac8 {[%clk 0:02:13.4]} 20. Rh4 {[%clk 0:01:34.6]} 20... Qg6 {[%clk
0:02:13.1]} 21. Qc5 {[%clk 0:01:30.3]} 21... c6 {[%clk 0:02:03.6]} 22. Be4
{[%clk 0:01:24.1]} 22... f5 {[%clk 0:02:03.6]} 23. dxc6 {[%clk 0:01:22.1]} 23...
fxe4 {[%clk 0:01:46.5]} 24. Qxb5 {[%clk 0:01:22.4]} 24... bxc6 {[%clk
0:01:46.4]} 25. Qc4+ {[%clk 0:01:22.7]} 25... Rf7 {[%clk 0:01:36.3]} 26. Qxe4
{[%clk 0:01:23]} 26... Qxe4 {[%clk 0:01:36.2]} 27. Rxe4 {[%clk 0:01:23.3]} 27...
Rb7 {[%clk 0:01:37.8]} 28. b4 {[%clk 0:01:21.6]} 28... a5 {[%clk 0:01:38]} 29.
bxa5 {[%clk 0:01:21.5]} 29... Ra8 {[%clk 0:01:39]} 30. Ra4 {[%clk 0:01:19.8]}
30... Rba7 {[%clk 0:01:38.9]} 31. Rc1 {[%clk 0:01:01.8]} 31... Rxa5 {[%clk
0:01:39.6]} 32. Rxa5 {[%clk 0:01:01.7]} 32... Rxa5 {[%clk 0:01:41.2]} 33. Rc3
{[%clk 0:01:01.2]} 33... Kf7 {[%clk 0:01:41.1]} 34. Kg2 {[%clk 0:01:01]} 34...
Ke7 {[%clk 0:01:42]} 35. Rxc6 {[%clk 0:00:59.8]} 35... Rxa3 {[%clk 0:01:41.7]}
36. Rc7+ {[%clk 0:01:00.9]} 36... Kf6 {[%clk 0:01:42.8]} 37. h4 {[%clk
0:01:01.2]} 37... h5 {[%clk 0:01:41.8]} 38. Rc6+ {[%clk 0:01:01.3]} 38... Kf7
{[%clk 0:01:42.7]} 39. Rb6 {[%clk 0:01:02]} 39... g6 {[%clk 0:01:43.8]} 40. Rb8
{[%clk 0:01:01.9]} 40... Rc3 {[%clk 0:01:43.5]} 41. Ra8 {[%clk 0:01:02.1]} 41...
Rb3 {[%clk 0:01:44.6]} 42. Ra2 {[%clk 0:01:02.2]} 42... Rc3 {[%clk 0:01:45.6]}
43. Re2 {[%clk 0:01:02.8]} 43... Ra3 {[%clk 0:01:46.6]} 44. Re3 {[%clk
0:01:03.8]} 44... Ra4 {[%clk 0:01:47.6]} 45. Kf3 {[%clk 0:01:04.7]} 45... Kf6
{[%clk 0:01:49.1]} 46. Rc3 {[%clk 0:01:05.4]} 46... Ra6 {[%clk 0:01:50.2]} 47.
Re3 {[%clk 0:01:04.6]} 47... Rb6 {[%clk 0:01:51.3]} 48. Re4 {[%clk 0:01:05.4]}
48... Ra6 {[%clk 0:01:52.2]} 49. Kf4 {[%clk 0:01:06.1]} 49... Rb6 {[%clk
0:01:53]} 50. f3 {[%clk 0:01:06.7]} 50... Rc6 {[%clk 0:01:53]} 51. Ra4 {[%clk
0:01:07.1]} 51... Rb6 {[%clk 0:01:53.9]} 52. Rc4 {[%clk 0:01:07.3]} 52... Ra6
{[%clk 0:01:54.5]} 53. Ke3 {[%clk 0:01:06.9]} 53... Re6+ {[%clk 0:01:47.6]} 54.
Kd4 {[%clk 0:01:04.1]} 54... Re2 {[%clk 0:01:46.4]} 55. Rc6+ {[%clk 0:01:04.8]}
55... Kf5 {[%clk 0:01:44.8]} 56. Kd3 {[%clk 0:01:03.9]} 56... Rg2 {[%clk
0:01:44.3]} 57. Rc5+ {[%clk 0:01:04.8]} 57... Kf6 {[%clk 0:01:45.8]} 58. Rg5
{[%clk 0:01:05.3]} 58... Ra2 {[%clk 0:01:46.5]} 59. Ke3 {[%clk 0:01:05.8]} 59...
Ra3+ {[%clk 0:01:47.3]} 60. Kf2 {[%clk 0:01:06.7]} 60... Ra2+ {[%clk 0:01:48.6]}
61. Kf1 {[%clk 0:01:07.5]} 61... Ra1+ {[%clk 0:01:49.2]} 62. Kg2 {[%clk
0:01:08]} 62... Ra2+ {[%clk 0:01:50.3]} 63. Kh3 {[%clk 0:01:09]} 63... Ra3
{[%clk 0:01:51.6]} 64. f4 {[%clk 0:01:09.9]} 64... Rb3 {[%clk 0:01:46.2]} 65.
Kg2 {[%clk 0:01:10]} 65... Rb2+ {[%clk 0:01:47.3]} 66. Kf3 {[%clk 0:01:10.6]}
66... Rb3+ {[%clk 0:01:48.7]} 67. Kg2 {[%clk 0:01:10.5]} 67... Rb2+ {[%clk
0:01:50]} 68. Kf3 {[%clk 0:01:11.5]} 68... Rb3+ {[%clk 0:01:51.2]} 69. Ke4
{[%clk 0:01:12.5]} 69... Rb4+ {[%clk 0:01:51.2]} 70. Kd5 {[%clk 0:01:13.7]}
70... Rb3 {[%clk 0:01:48.6]} 71. Kd6 {[%clk 0:01:14.3]} 71... Rd3+ {[%clk
0:01:49.5]} 72. Kc6 {[%clk 0:01:15.3]} 72... Rd4 {[%clk 0:01:47.9]} 73. Kc5
{[%clk 0:01:14.4]} 73... Rd3 {[%clk 0:01:48]} 74. Kc4 {[%clk 0:01:15.1]} 74...
Rd1 {[%clk 0:01:47.1]} 75. Kc3 {[%clk 0:01:13.8]} 75... Ra1 {[%clk 0:01:47]} 76.
Kd3 {[%clk 0:01:14]} 76... Ra3+ {[%clk 0:01:47.8]} 77. Kd4 {[%clk 0:01:14.7]}
77... Ra4+ {[%clk 0:01:48.8]} 78. Kc5 {[%clk 0:01:15.3]} 78... Ra3 {[%clk
0:01:49.7]} 79. Kd4 {[%clk 0:01:14.6]} 79... Ra4+ {[%clk 0:01:50.7]} 80. Kd5
{[%clk 0:01:15.7]} 80... Ra3 {[%clk 0:01:50.6]} 81. Kd6 {[%clk 0:01:14.8]} 81...
Rd3+ {[%clk 0:01:51.1]} 82. Kc7 {[%clk 0:01:15.7]} 82... Rd4 {[%clk 0:01:47.5]}
83. Kc6 {[%clk 0:01:15.6]} 83... Rd3 {[%clk 0:01:48.4]} 84. Kc5 {[%clk
0:01:16.4]} 84... Rd1 {[%clk 0:01:47.7]} 85. Kc4 {[%clk 0:01:16.9]} 85... Rc1+
{[%clk 0:01:47.8]} 86. Kd3 {[%clk 0:01:17.8]} 86... Ra1 {[%clk 0:01:48.8]} 87.
Ke3 {[%clk 0:01:18.7]} 87... Ra3+ {[%clk 0:01:49.2]} 88. Kf2 {[%clk 0:01:19.4]}
88... Ra2+ {[%clk 0:01:50.6]} 89. Kf3 {[%clk 0:01:20.5]} 89... Ra3+ {[%clk
0:01:51.7]} 90. Kg2 {[%clk 0:01:21.7]} 90... Ra2+ {[%clk 0:01:53.1]} 91. Kh3
{[%clk 0:01:22.8]} 91... Ra3 {[%clk 0:01:53.1]} 92. Rb5 {[%clk 0:01:23.5]} 92...
Rc3 {[%clk 0:01:52.8]} 93. Rb2 {[%clk 0:01:23.8]} 93... Ra3 {[%clk 0:01:53.2]}
94. Kg2 {[%clk 0:01:23.2]} 94... Kf5 {[%clk 0:01:54.4]} 95. Rb6 {[%clk
0:01:21.2]} 95... Ra2+ {[%clk 0:01:51.9]} 96. Kh3 {[%clk 0:01:22.2]} 96... Ra3
{[%clk 0:01:53]} 97. Rc6 {[%clk 0:01:22.5]} 97... Rb3 {[%clk 0:01:53.8]} 98. Rc8
{[%clk 0:01:23.3]} 98... Kf6 {[%clk 0:01:54.5]} 99. Rc5 {[%clk 0:01:23.8]} 99...
Ra3 {[%clk 0:01:55]} 100. Rb5 {[%clk 0:01:23]} 100... Rc3 {[%clk 0:01:55.7]}
101. Rb8 {[%clk 0:01:22.6]} 101... Ra3 {[%clk 0:01:56.1]} 102. Rf8+ {[%clk
0:01:22.9]} 102... Kg7 {[%clk 0:01:57.2]} 103. Rd8 {[%clk 0:01:23.3]} 103... Kf6
{[%clk 0:01:58.5]} 104. Rd6+ {[%clk 0:01:23.1]} 104... Kf7 {[%clk 0:01:58.3]}
105. Rb6 {[%clk 0:01:21.6]} 105... Kg7 {[%clk 0:01:56.6]} 106. Kg2 {[%clk
0:01:21.3]} 106... Ra2+ {[%clk 0:01:57.4]} 107. Kh3 {[%clk 0:01:22.5]} 107...
Ra3 {[%clk 0:01:58.5]} 108. Rc6 {[%clk 0:01:22.6]} 108... Rb3 {[%clk 0:01:47.1]}
109. Re6 {[%clk 0:01:20.8]} 109... Kf7 {[%clk 0:01:45.3]} 110. Re2 {[%clk
0:01:20.9]} 110... Kf6 {[%clk 0:01:45.3]} 111. Kg2 {[%clk 0:01:22]} 111... Ra3
{[%clk 0:01:46.2]} 112. Kf2 {[%clk 0:01:22.7]} 112... Rb3 {[%clk 0:01:47.4]}
113. Re3 {[%clk 0:01:22.5]} 113... Rb2+ {[%clk 0:01:47.6]} 114. Kf3 {[%clk
0:01:23.7]} 114... Ra2 {[%clk 0:01:49.1]} 115. Rc3 {[%clk 0:01:23.5]} 115... Rb2
{[%clk 0:01:49.7]} 116. Rc6+ {[%clk 0:01:23.1]} 116... Kf5 {[%clk 0:01:48.9]}
117. Rc5+ {[%clk 0:01:24]} 117... Kf6 {[%clk 0:01:50.2]} 118. Rc3 {[%clk
0:01:23.4]} 118... Ra2 {[%clk 0:01:51.1]} 119. g4 {[%clk 0:01:23.8]} 119...
hxg4+ {[%clk 0:01:51.1]} 120. Kg3 {[%clk 0:01:23.4]} 120... Rb2 {[%clk
0:01:46.7]} 121. Ra3 {[%clk 0:01:23.5]} 121... Rc2 {[%clk 0:01:47.6]} 122. Ra6+
{[%clk 0:01:23.9]} 122... Kf5 {[%clk 0:01:48.4]} 123. Ra5+ {[%clk 0:01:24.7]}
123... Kf6 {[%clk 0:01:49.6]} 124. Kxg4 {[%clk 0:01:25.4]} 124... Rg2+ {[%clk
0:01:50.3]} 125. Kf3 {[%clk 0:01:26.3]} 125... Rh2 {[%clk 0:01:51.3]} 126. Kg3
{[%clk 0:01:27.2]} 126... Rb2 {[%clk 0:01:52.4]} 127. Ra6+ {[%clk 0:01:27.3]}
127... Kf5 {[%clk 0:01:52.8]} 128. Ra5+ {[%clk 0:01:28.1]} 128... Kf6 {[%clk
0:01:54.4]} 129. Rc5 {[%clk 0:01:27.9]} 129... Ra2 {[%clk 0:01:55]} 130. Rc8
{[%clk 0:01:26.1]} 130... Rb2 {[%clk 0:01:53.2]} 131. Kf3 {[%clk 0:01:26.2]}
131... Ra2 {[%clk 0:01:53.6]} 132. Rb8 {[%clk 0:01:26.3]} 132... Rc2 {[%clk
0:01:53.3]} 133. Rb6+ {[%clk 0:01:26.3]} 133... Kf5 {[%clk 0:01:54.5]} 134. Rb5+
{[%clk 0:01:27]} 134... Kf6 {[%clk 0:01:56]} 135. Kg3 {[%clk 0:01:27.7]} 135...
Ra2 {[%clk 0:01:56.1]} 136. Rc5 {[%clk 0:01:28]} 136... Rb2 {[%clk 0:01:56.8]}
137. Ra5 {[%clk 0:01:26.9]} 137... Rc2 {[%clk 0:01:57.3]} 138. h5 {[%clk
0:01:26.3]} 138... gxh5 {[%clk 0:01:57.7]} 139. Rxh5 {[%clk 0:01:26.4]} 139...
Rc1 {[%clk 0:01:57.1]} 140. Ra5 {[%clk 0:01:26.5]} 140... Rb1 {[%clk 0:01:58]}
141. Kf3 {[%clk 0:01:26.9]} 141... Rf1+ {[%clk 0:01:58.2]} 142. Kg4 {[%clk
0:01:27.4]} 142... Rg1+ {[%clk 0:01:59.2]} 1/2-1/2

[Event "*** Titled Tuesday 3|2 Blitz"]
[Site "Chess.com"]
[Date "2017.03.07"]
[Round "3"]
[White "chessbia"]
[Black "iturrizaga"]
[Result "0-1"]
[WhiteElo "2120"]
[BlackElo "2636"]
[TimeControl "180+2"]
[EndTime "13:32:35 PST"]
[Termination "iturrizaga won by resignation"]

1. d4 {[%clk 0:03:02]} 1... Nf6 {[%clk 0:03:00.7]} 2. c4 {[%clk 0:03:03.3]} 2...
c5 {[%clk 0:03:02.6]} 3. d5 {[%clk 0:03:04.2]} 3... b5 {[%clk 0:03:04.1]} 4.
cxb5 {[%clk 0:03:05.5]} 4... a6 {[%clk 0:03:05.5]} 5. bxa6 {[%clk 0:03:07.4]}
5... g6 {[%clk 0:03:07.1]} 6. Nc3 {[%clk 0:03:09.3]} 6... Bxa6 {[%clk
0:03:08.5]} 7. e4 {[%clk 0:03:10.8]} 7... Bxf1 {[%clk 0:03:10.2]} 8. Kxf1 {[%clk
0:03:12.7]} 8... d6 {[%clk 0:03:11.7]} 9. Nf3 {[%clk 0:03:14.4]} 9... Nbd7
{[%clk 0:03:13.5]} 10. g3 {[%clk 0:03:16]} 10... Bg7 {[%clk 0:03:15.4]} 11. Kg2
{[%clk 0:03:17.5]} 11... O-O {[%clk 0:03:17.3]} 12. a4 {[%clk 0:03:19]} 12...
Ra6 {[%clk 0:03:18.9]} 13. Ra3 {[%clk 0:03:20]} 13... Qa8 {[%clk 0:03:20.5]} 14.
Qc2 {[%clk 0:03:18.8]} 14... Rc8 {[%clk 0:03:22]} 15. Re1 {[%clk 0:03:10.1]}
15... c4 {[%clk 0:03:22.5]} 16. Be3 {[%clk 0:03:05.6]} 16... Ng4 {[%clk
0:03:23.3]} 17. Bd4 {[%clk 0:03:03.7]} 17... Nge5 {[%clk 0:03:20.3]} 18. Nd2
{[%clk 0:02:45.6]} 18... Nd3 {[%clk 0:03:19.3]} 0-1

[Event "*** Titled Tuesday 3|2 Blitz"]
[Site "Chess.com"]
[Date "2017.03.07"]
[Round "3"]
[White "olomi007"]
[Black "alexsuper1987"]
[Result "1-0"]
[WhiteElo "2475"]
[BlackElo "2181"]
[TimeControl "180+2"]
[EndTime "13:33:52 PST"]
[Termination "olomi007 won by resignation"]

1. e4 {[%clk 0:03:02]} 1... e6 {[%clk 0:03:00.5]} 2. d4 {[%clk 0:03:02.8]} 2...
d5 {[%clk 0:03:01.9]} 3. Nd2 {[%clk 0:03:03.8]} 3... c5 {[%clk 0:02:59.5]} 4.
exd5 {[%clk 0:03:04.5]} 4... Qxd5 {[%clk 0:02:59.2]} 5. Ngf3 {[%clk 0:03:05.8]}
5... cxd4 {[%clk 0:03:00.3]} 6. Bc4 {[%clk 0:03:07.4]} 6... Qd6 {[%clk 0:03:01]}
7. O-O {[%clk 0:03:08.3]} 7... Nf6 {[%clk 0:03:02.6]} 8. Nb3 {[%clk 0:03:09]}
8... Nc6 {[%clk 0:03:04.3]} 9. Nbxd4 {[%clk 0:03:09.4]} 9... Nxd4 {[%clk
0:03:06]} 10. Nxd4 {[%clk 0:03:11.1]} 10... a6 {[%clk 0:03:07.6]} 11. Re1 {[%clk
0:03:10.6]} 11... Be7 {[%clk 0:03:08]} 12. Bf1 {[%clk 0:02:34.7]} 12... Qc7
{[%clk 0:03:01]} 13. Qf3 {[%clk 0:02:34.1]} 13... O-O {[%clk 0:03:01]} 14. Bf4
{[%clk 0:02:34.9]} 14... Bd6 {[%clk 0:02:54.1]} 15. Bxd6 {[%clk 0:02:36]} 15...
Qxd6 {[%clk 0:02:54.9]} 16. Rad1 {[%clk 0:02:37.5]} 16... Qb4 {[%clk 0:02:53.7]}
17. Nb3 {[%clk 0:02:23.1]} 17... Bd7 {[%clk 0:02:53.4]} 18. c3 {[%clk
0:02:20.4]} 18... Qa4 {[%clk 0:02:44.1]} 19. Nc5 {[%clk 0:02:17.5]} 19... Qb5
{[%clk 0:02:22.4]} 20. Bxb5 {[%clk 0:02:17.5]} 1-0

[Event "*** Titled Tuesday 3|2 Blitz"]
[Site "Chess.com"]
[Date "2017.03.07"]
[Round "3"]
[White "JeremDev"]
[Black "Tash_Boy"]
[Result "1-0"]
[WhiteElo "2231"]
[BlackElo "2501"]
[TimeControl "180+2"]
[EndTime "13:34:38 PST"]
[Termination "JeremDev won by resignation"]

1. e4 {[%clk 0:03:01.9]} 1... e5 {[%clk 0:03:00.2]} 2. Nf3 {[%clk 0:03:02.5]}
2... Nc6 {[%clk 0:03:00.5]} 3. Bc4 {[%clk 0:03:02.6]} 3... Bc5 {[%clk
0:03:00.1]} 4. O-O {[%clk 0:03:03]} 4... Nf6 {[%clk 0:02:59.2]} 5. d4 {[%clk
0:03:01.3]} 5... Bxd4 {[%clk 0:02:53.8]} 6. Nxd4 {[%clk 0:03:02]} 6... Nxd4
{[%clk 0:02:54.3]} 7. f4 {[%clk 0:03:02.4]} 7... d6 {[%clk 0:02:49]} 8. fxe5
{[%clk 0:03:03.5]} 8... dxe5 {[%clk 0:02:49.7]} 9. Bg5 {[%clk 0:03:03.3]} 9...
Qe7 {[%clk 0:02:47.7]} 10. Nc3 {[%clk 0:03:00.6]} 10... Be6 {[%clk 0:02:44.7]}
11. Nd5 {[%clk 0:02:46.6]} 11... Bxd5 {[%clk 0:02:44.9]} 12. Bxd5 {[%clk
0:02:36.9]} 12... c6 {[%clk 0:02:44.8]} 13. c3 {[%clk 0:02:36.1]} 13... Ne6
{[%clk 0:02:31.3]} 14. Bxe6 {[%clk 0:02:30.1]} 14... Qxe6 {[%clk 0:02:29.9]} 15.
Bxf6 {[%clk 0:02:30.5]} 15... gxf6 {[%clk 0:02:30.5]} 16. Qh5 {[%clk 0:02:23.6]}
16... O-O-O {[%clk 0:02:29]} 17. Qh6 {[%clk 0:02:18.1]} 17... Rd2 {[%clk
0:02:10.5]} 18. Qxd2 {[%clk 0:02:17.2]} 18... Rg8 {[%clk 0:02:07.3]} 19. Rad1
{[%clk 0:02:12.9]} 19... Kc7 {[%clk 0:02:06]} 20. b3 {[%clk 0:02:12.4]} 20... h5
{[%clk 0:01:59.3]} 21. c4 {[%clk 0:02:11.9]} 21... b6 {[%clk 0:01:59.2]} 22. c5
{[%clk 0:02:11.2]} 22... h4 {[%clk 0:01:59.3]} 23. Qd6+ {[%clk 0:02:11.4]} 1-0

[Event "*** Titled Tuesday 3|2 Blitz"]
[Site "Chess.com"]
[Date "2017.03.07"]
[Round "3"]
[White "AllStarShark"]
[Black "MyleneFarmer"]
[Result "0-1"]
[WhiteElo "2261"]
[BlackElo "2361"]
[TimeControl "180+2"]
[EndTime "13:35:03 PST"]
[Termination "MyleneFarmer won by checkmate"]

1. d4 {[%clk 0:03:02]} 1... d5 {[%clk 0:03:00.7]} 2. Bf4 {[%clk 0:03:00]} 2...
Nf6 {[%clk 0:03:00.3]} 3. e3 {[%clk 0:03:00.7]} 3... Bf5 {[%clk 0:03:01.8]} 4.
c4 {[%clk 0:03:00.2]} 4... e6 {[%clk 0:03:02.5]} 5. Nc3 {[%clk 0:03:01.1]} 5...
c5 {[%clk 0:03:02.7]} 6. cxd5 {[%clk 0:03:00.6]} 6... exd5 {[%clk 0:03:02.4]} 7.
Nf3 {[%clk 0:03:00.4]} 7... Nc6 {[%clk 0:03:02.8]} 8. Bd3 {[%clk 0:03:01]} 8...
Bxd3 {[%clk 0:03:03.4]} 9. Qxd3 {[%clk 0:03:02.9]} 9... cxd4 {[%clk 0:03:04.3]}
10. Nxd4 {[%clk 0:03:02.9]} 10... Be7 {[%clk 0:03:05]} 11. Nf5 {[%clk
0:03:02.1]} 11... O-O {[%clk 0:03:05.4]} 12. Nxe7+ {[%clk 0:02:54.1]} 12... Qxe7
{[%clk 0:03:07.3]} 13. O-O {[%clk 0:02:54.9]} 13... Rad8 {[%clk 0:03:07.4]} 14.
Qb5 {[%clk 0:02:54.4]} 14... d4 {[%clk 0:02:58.5]} 15. exd4 {[%clk 0:02:42.8]}
15... Nxd4 {[%clk 0:03:00.4]} 16. Qa4 {[%clk 0:02:43.5]} 16... b5 {[%clk
0:03:00.4]} 17. Qa6 {[%clk 0:02:33]} 17... b4 {[%clk 0:03:00.1]} 18. Rae1 {[%clk
0:02:20.3]} 18... Ne6 {[%clk 0:02:52.3]} 19. Ne4 {[%clk 0:02:14.4]} 19... Nxf4
{[%clk 0:02:46.7]} 20. Nxf6+ {[%clk 0:02:03.4]} 20... Qxf6 {[%clk 0:02:48.6]}
21. Qxa7 {[%clk 0:02:03.3]} 21... Rd2 {[%clk 0:02:40.9]} 22. Qa4 {[%clk
0:01:51.3]} 22... Rxb2 {[%clk 0:02:40.7]} 23. Re8 {[%clk 0:01:51.1]} 23... g6
{[%clk 0:02:40.1]} 24. Rxf8+ {[%clk 0:01:48.6]} 24... Kxf8 {[%clk 0:02:42]} 25.
g3 {[%clk 0:01:47.9]} 25... Nd3 {[%clk 0:02:38.4]} 26. Qb5 {[%clk 0:01:40.4]}
26... Nxf2 {[%clk 0:02:33.8]} 27. Qd5 {[%clk 0:01:36.3]} 27... Nh3+ {[%clk
0:02:28.4]} 28. Kh1 {[%clk 0:01:36]} 28... Qxf1# {[%clk 0:02:28.5]} 0-1

[Event "*** Titled Tuesday 3|2 Blitz"]
[Site "Chess.com"]
[Date "2017.03.07"]
[Round "3"]
[White "littleozy"]
[Black "Jahonas"]
[Result "1-0"]
[WhiteElo "2286"]
[BlackElo "2165"]
[TimeControl "180+2"]
[EndTime "13:35:30 PST"]
[Termination "littleozy won by resignation"]

1. d4 {[%clk 0:03:02]} 1... Nf6 {[%clk 0:02:57.6]} 2. c4 {[%clk 0:03:02.6]} 2...
g6 {[%clk 0:02:58.5]} 3. Nc3 {[%clk 0:03:03]} 3... d5 {[%clk 0:02:59.5]} 4. Nf3
{[%clk 0:02:58.6]} 4... Bg7 {[%clk 0:03:00.3]} 5. g3 {[%clk 0:02:59.5]} 5... O-O
{[%clk 0:03:00.9]} 6. Bg2 {[%clk 0:03:01]} 6... c6 {[%clk 0:02:44.6]} 7. cxd5
{[%clk 0:02:55.3]} 7... Nxd5 {[%clk 0:02:44.6]} 8. O-O {[%clk 0:02:56.9]} 8...
Nxc3 {[%clk 0:02:44.9]} 9. bxc3 {[%clk 0:02:57.8]} 9... Nd7 {[%clk 0:02:40.7]}
10. Be3 {[%clk 0:02:46.6]} 10... e5 {[%clk 0:02:38.4]} 11. Qd2 {[%clk
0:02:46.9]} 11... Qe7 {[%clk 0:02:32.7]} 12. Bh6 {[%clk 0:02:42]} 12... Re8
{[%clk 0:02:31.5]} 13. Bxg7 {[%clk 0:02:42.3]} 13... Kxg7 {[%clk 0:02:32]} 14.
e3 {[%clk 0:02:42.9]} 14... exd4 {[%clk 0:02:29.4]} 15. cxd4 {[%clk 0:02:39.1]}
15... Nf6 {[%clk 0:02:29.3]} 16. Ne5 {[%clk 0:02:36.1]} 16... Be6 {[%clk
0:02:27.8]} 17. Rab1 {[%clk 0:02:33.4]} 17... Bd5 {[%clk 0:02:25.8]} 18. Rb2
{[%clk 0:02:23]} 18... Bxg2 {[%clk 0:02:24]} 19. Kxg2 {[%clk 0:02:24.9]} 19...
Ne4 {[%clk 0:02:23.2]} 20. Qc2 {[%clk 0:02:24.1]} 20... f6 {[%clk 0:02:17.5]}
21. Qxe4 {[%clk 0:02:19.6]} 21... fxe5 {[%clk 0:02:18.1]} 22. dxe5 {[%clk
0:02:20.1]} 22... Qxe5 {[%clk 0:02:18.8]} 23. Rxb7+ {[%clk 0:02:20.3]} 23... Kh6
{[%clk 0:02:16.6]} 24. Qxe5 {[%clk 0:02:11.2]} 24... Rxe5 {[%clk 0:02:17]} 25.
Rc1 {[%clk 0:02:12.7]} 25... Ra5 {[%clk 0:02:15.8]} 26. Rc2 {[%clk 0:02:08.3]}
26... Rc8 {[%clk 0:02:12.9]} 27. h4 {[%clk 0:02:06]} 27... c5 {[%clk 0:02:13.6]}
28. Rd2 {[%clk 0:02:05.5]} 28... c4 {[%clk 0:02:08.8]} 29. Rdd7 {[%clk
0:02:06.1]} 29... Rh8 {[%clk 0:02:08.3]} 30. g4 {[%clk 0:02:03.3]} 30... Rxa2
{[%clk 0:01:58]} 31. Kg3 {[%clk 0:02:00.8]} 1-0

[Event "*** Titled Tuesday 3|2 Blitz"]
[Site "Chess.com"]
[Date "2017.03.07"]
[Round "3"]
[White "Matibar"]
[Black "Dr-Bassem"]
[Result "0-1"]
[WhiteElo "2531"]
[BlackElo "2640"]
[TimeControl "180+2"]
[EndTime "13:36:38 PST"]
[Termination "Dr-Bassem won by resignation"]

1. g3 {[%clk 0:03:02]} 1... e5 {[%clk 0:03:00.2]} 2. Bg2 {[%clk 0:03:03.1]} 2...
d5 {[%clk 0:03:00.9]} 3. c3 {[%clk 0:02:58.3]} 3... Nf6 {[%clk 0:02:57.8]} 4. d4
{[%clk 0:02:58.6]} 4... e4 {[%clk 0:02:56.4]} 5. Nh3 {[%clk 0:02:56.6]} 5... Bd6
{[%clk 0:02:54]} 6. O-O {[%clk 0:02:56.4]} 6... O-O {[%clk 0:02:54.1]} 7. f3
{[%clk 0:02:53.7]} 7... h6 {[%clk 0:02:37.8]} 8. Nf2 {[%clk 0:02:49.3]} 8...
exf3 {[%clk 0:02:34.2]} 9. exf3 {[%clk 0:02:51.2]} 9... Re8 {[%clk 0:02:34.1]}
10. Nd2 {[%clk 0:02:50.8]} 10... Bf5 {[%clk 0:02:31.1]} 11. Nb3 {[%clk
0:02:50.9]} 11... Nbd7 {[%clk 0:02:29.1]} 12. Re1 {[%clk 0:02:49.2]} 12... Nb6
{[%clk 0:02:17.4]} 13. Na5 {[%clk 0:02:44.1]} 13... Rb8 {[%clk 0:02:11.9]} 14.
Be3 {[%clk 0:02:36.3]} 14... c6 {[%clk 0:02:10.2]} 15. Qd2 {[%clk 0:02:34.1]}
15... Qc7 {[%clk 0:02:05.7]} 16. a4 {[%clk 0:02:11.2]} 16... Re6 {[%clk
0:02:03.2]} 17. b3 {[%clk 0:01:58.2]} 17... Rbe8 {[%clk 0:01:44.4]} 18. c4
{[%clk 0:01:57.8]} 18... dxc4 {[%clk 0:01:01]} 19. bxc4 {[%clk 0:01:57.7]} 19...
Nbd5 {[%clk 0:00:56.1]} 20. cxd5 {[%clk 0:01:53.8]} 20... Nxd5 {[%clk 0:00:58]}
21. Nc4 {[%clk 0:01:53.6]} 21... Bb4 {[%clk 0:00:59]} 22. Qb2 {[%clk 0:01:38.7]}
22... Bxe1 {[%clk 0:00:57.7]} 23. Ne4 {[%clk 0:01:33.9]} 23... Bxe4 {[%clk
0:00:45.6]} 24. Rxe1 {[%clk 0:01:32.4]} 0-1

[Event "*** Titled Tuesday 3|2 Blitz"]
[Site "Chess.com"]
[Date "2017.03.07"]
[Round "3"]
[White "attack2mateU"]
[Black "SantoBlue"]
[Result "0-1"]
[WhiteElo "2327"]
[BlackElo "2391"]
[TimeControl "180+2"]
[EndTime "13:36:38 PST"]
[Termination "SantoBlue won by resignation"]

1. e4 {[%clk 0:03:02]} 1... e5 {[%clk 0:03:00.4]} 2. Nf3 {[%clk 0:03:02.3]} 2...
Nc6 {[%clk 0:03:01.1]} 3. Bb5 {[%clk 0:03:02.4]} 3... a6 {[%clk 0:03:00.4]} 4.
Ba4 {[%clk 0:03:02.8]} 4... Nf6 {[%clk 0:03:00.3]} 5. O-O {[%clk 0:03:02.6]}
5... Be7 {[%clk 0:02:53.8]} 6. Re1 {[%clk 0:02:47.8]} 6... b5 {[%clk 0:02:53.9]}
7. Bb3 {[%clk 0:02:48.2]} 7... O-O {[%clk 0:02:55.2]} 8. c3 {[%clk 0:02:48.7]}
8... d6 {[%clk 0:02:52.9]} 9. h3 {[%clk 0:02:49.1]} 9... Na5 {[%clk 0:02:46.5]}
10. Bc2 {[%clk 0:02:48.9]} 10... d5 {[%clk 0:02:47.6]} 11. Nxe5 {[%clk
0:02:36.8]} 11... dxe4 {[%clk 0:02:42.8]} 12. d4 {[%clk 0:01:58.7]} 12... exd3
{[%clk 0:02:41.9]} 13. Qxd3 {[%clk 0:01:37.9]} 13... Bb7 {[%clk 0:02:41.9]} 14.
Bf4 {[%clk 0:01:20.7]} 14... Qd5 {[%clk 0:02:22.7]} 15. Qxd5 {[%clk 0:01:18.1]}
15... Nxd5 {[%clk 0:02:24.6]} 16. Bg3 {[%clk 0:01:18.7]} 16... Bg5 {[%clk
0:02:24.9]} 17. Nf3 {[%clk 0:01:15.3]} 17... Bh6 {[%clk 0:02:20.9]} 18. Nbd2
{[%clk 0:01:16.6]} 18... Nb6 {[%clk 0:02:21.8]} 19. Bxc7 {[%clk 0:01:09]} 19...
Nac4 {[%clk 0:02:22.9]} 20. Nxc4 {[%clk 0:00:47.8]} 20... Nxc4 {[%clk
0:02:22.7]} 21. b3 {[%clk 0:00:49.3]} 21... Rfc8 {[%clk 0:02:21.9]} 22. bxc4
{[%clk 0:00:43.1]} 22... Rxc7 {[%clk 0:02:22.5]} 23. cxb5 {[%clk 0:00:37.4]}
23... Rxc3 {[%clk 0:02:23.4]} 24. Bb3 {[%clk 0:00:30.9]} 24... Bxf3 {[%clk
0:02:12.9]} 25. gxf3 {[%clk 0:00:32.8]} 25... axb5 {[%clk 0:02:14]} 26. Kg2
{[%clk 0:00:32.6]} 26... g6 {[%clk 0:02:14.2]} 27. Re7 {[%clk 0:00:32.8]} 27...
Rxb3 {[%clk 0:02:15]} 28. Rd1 {[%clk 0:00:26.4]} 28... Rb4 {[%clk 0:02:12.1]}
0-1